fUSD/lending_fUSD_20251213
["ID","MTS","AMOUNT","RATE_DAILY","PERIOD"]
[398448810,1765665032545,-371.86527032,0.00015968,2]
[398448811,1765665032556,-1335.0404331,0.00015968,2]
[398448812,1765665032567,-729.08903353,0.00015968,2]
[398448813,1765665032579,-738.60285818,0.00015968,2]
[398448814,1765665032588,-300.0,0.00015999,2]
[398448815,1765665032597,-13509.87743047,0.00016,4]
[398449001,1765665039939,500.0,0.00015433,2]
[398449069,1765665040566,-1.7e-07,0.00016,4]
[398449071,1765665040577,-303.4037965,0.00016,4]
[398449305,1765665042828,-298.0,0.00016,4]
[398449613,1765665045790,-890.2090137,0.00016,4]
[398450304,1765665211344,200.0,0.00015735,2]
[398450473,1765665431856,166.66,0.00014539,2]
[398450474,1765665432063,166.66,0.00014845,2]
[398450475,1765665432246,166.66,0.00015151,2]
[398450476,1765665432465,166.66,0.00015457,2]
[398450477,1765665432642,166.66,0.00015763,2]
[398450481,1765665455542,200.0,0.00015823,2]
[398450482,1765665456167,207.4,0.00015823,2]
[398450483,1765665456773,215.0738,0.00015823,2]
[398450484,1765665457424,223.0315306,0.00015823,2]
[398450485,1765665458025,231.28369723,0.00015823,2]
[398450486,1765665458712,239.84119403,0.00015823,2]
[398450487,1765665459313,372.54851962,0.00015823,2]
[398450617,1765665756985,159.16,0.00012173,2]
[398450620,1765665788183,1237.08,0.00015207,2]
[398450640,1765665926599,150.0,0.00015288,2]
[398450641,1765665926982,150.0,0.00015288,2]
[398450642,1765665927044,150.0,0.00015288,2]
[398450643,1765665933189,150.0,0.00015288,2]
[398450644,1765665942436,159.67,0.00015144,2]
[398450647,1765665970375,218.2368819,0.00015779,2]
[398450648,1765665970434,170.11459913,0.00015099,2]
[398450653,1765666034230,200.0,0.00015647,2]
[398450662,1765666082006,150.0,0.00015141,2]
[398450696,1765666166344,397.89779901,0.00015099,2]
[398450941,1765666231881,-300.0,0.00015846,2]
[398450943,1765666231891,-250.0,0.0001585,2]
[398450944,1765666231901,-150.0,0.00015854,2]
[398450945,1765666231911,-300.0,0.00015857,2]
[398450946,1765666231921,-1200.0,0.00015857,2]
[398450947,1765666231930,-288.70593134,0.00015857,2]
[398450948,1765666231940,-13179.36436719,0.00015858,2]
[398450949,1765666231951,-5352.98423011,0.00015858,2]
[398450950,1765666231961,-150.66,0.00015899,2]
[398450951,1765666231970,-151.3,0.00015899,2]
[398450952,1765666231980,-150.67,0.00015899,2]
[398450953,1765666231988,-151.53,0.00015899,2]
[398450954,1765666231997,-150.55,0.00015899,2]
[398450955,1765666232006,-151.43,0.00015899,2]
[398450956,1765666232016,-500.0,0.00015899,2]
[398450957,1765666232025,-300.0,0.00015989,2]
[398450958,1765666232034,-151.52,0.00015999,2]
[398450959,1765666232043,-150.97,0.00015999,2]
[398450960,1765666232058,-1000.0,0.00015999,2]
[398450961,1765666232068,-318.63,0.00015999,2]
[398450962,1765666232077,-500.0,0.00015999,2]
[398450963,1765666232087,-500.0,0.00015999,2]
[398450964,1765666232096,-500.0,0.00015999,2]
[398450965,1765666232105,-500.0,0.00015999,2]
[398450966,1765666232115,-500.0,0.00015999,2]
[398450967,1765666232124,-500.0,0.00015999,2]
[398450968,1765666232133,-500.0,0.00015999,2]
[398450969,1765666232143,-500.0,0.00015999,2]
[398450970,1765666232152,-338.49106263,0.00015999,2]
[398450971,1765666232161,-500.0,0.00015999,2]
[398450972,1765666232171,-500.0,0.00015999,2]
[398450973,1765666232180,-500.0,0.00015999,2]
[398450974,1765666232191,-500.0,0.00015999,2]
[398450975,1765666232201,-500.0,0.00015999,2]
[398450977,1765666232210,-500.0,0.00015999,2]
[398450979,1765666232219,-500.0,0.00015999,2]
[398450981,1765666232229,-204.27678473,0.00015999,2]
[398450983,1765666232238,-151.76,0.00016,2]
[398450985,1765666232248,-152.89,0.00016,2]
[398450987,1765666232258,-50871.34872299,0.00016,4]
[398450989,1765666232267,-2122.726,0.00016,2]
[398450992,1765666232285,-172.214,0.00016,2]
[398450994,1765666232295,-152.0,0.00016,2]
[398450996,1765666232305,-152.0,0.00016,2]
[398450999,1765666232315,-152.0,0.00016,2]
[398451001,1765666232324,-152.0,0.00016,2]
[398451003,1765666232334,-152.0,0.00016,2]
[398451005,1765666232345,-153.0,0.00016,2]
[398451007,1765666232354,-152.0,0.00016,2]
[398451009,1765666232364,-153.0,0.00016,2]
[398451011,1765666232374,-152.0,0.00016,2]
[398451013,1765666232384,-153.0,0.00016,2]
[398451015,1765666232394,-152.0,0.00016,2]
[398451017,1765666232403,-152.0,0.00016,2]
[398451019,1765666232413,-153.0,0.00016,2]
[398451022,1765666232428,-152.0,0.00016,2]
[398451024,1765666232438,-152.0,0.00016,2]
[398451026,1765666232448,-300.37633732,0.00016,2]
[398451028,1765666232457,-152.0,0.00016,2]
[398451030,1765666232467,-152.0,0.00016,2]
[398451032,1765666232477,-282.63644827,0.00016,2]
[398451034,1765666232487,-152.0,0.00016,2]
[398451036,1765666232496,-3557.41783443,0.00016,2]
[398451039,1765666232506,-5433.31694977,0.00016,2]
[398451041,1765666232520,-1533.86550214,0.00016,2]
[398451043,1765666232531,-500.0,0.00016,2]
[398451045,1765666232544,-181.55590848,0.00016,2]
[398451048,1765666232555,-156.32703025,0.00016,2]
[398451050,1765666232564,-689.69261819,0.00016,2]
[398451052,1765666232576,-152.0,0.00016,2]
[398451054,1765666232586,-157.0,0.00016,2]
[398451056,1765666232596,-157.0,0.00016,2]
[398451058,1765666232605,-163.74369318,0.00016,2]
[398451060,1765666232617,-382.03,0.00016046,2]
[398451062,1765666232627,-166.66,0.0001607,2]
[398451064,1765666232637,-151.0,0.0001609,2]
[398451067,1765666232647,-151.0,0.0001609,2]
[398451069,1765666232656,-151.0,0.0001609,2]
[398451071,1765666232666,-151.0,0.0001609,2]
[398451073,1765666232678,-151.0,0.0001609,2]
[398451075,1765666232689,-151.0,0.0001609,2]
[398451077,1765666232699,-151.0,0.0001609,2]
[398451080,1765666232708,-151.0,0.0001609,2]
[398451082,1765666232718,-151.0,0.0001609,2]
[398451084,1765666232728,-500.0,0.00016099,2]
[398451086,1765666232738,-500.0,0.00016099,2]
[398451088,1765666232748,-500.0,0.00016099,2]
[398451090,1765666232758,-486.62056201,0.00016099,2]
[398451092,1765666232767,-5244.6746,0.000161,2]
[398451094,1765666232778,-59588.18261516,0.000161,2]
[398451097,1765666232794,-2581.03791468,0.000161,2]
[398451099,1765666232806,-1991.73526069,0.000161,2]
[398451103,1765666232827,-1063.55689978,0.000161,2]
[398451105,1765666232838,-987.4479749,0.000161,2]
[398451107,1765666232850,-6309.67263343,0.000161,2]
[398451109,1765666232862,-529.88865121,0.000161,2]
[398451112,1765666232873,-1977.07310284,0.000161,2]
[398451114,1765666232889,-19966.41612398,0.000161,2]
[398451117,1765666232901,-297.53721885,0.000161,2]
[398451119,1765666232912,-838.6458696,0.000161,2]
[398451121,1765666232924,-653.82212702,0.000161,2]
[398451124,1765666232939,-1070.98248626,0.000161,2]
[398451126,1765666232951,-1427.00894998,0.000161,2]
[398451128,1765666232962,-347.43508066,0.000161,2]
[398451131,1765666232974,-477.000009,0.000161,2]
[398451133,1765666232990,-270.69232887,0.000161,2]
[398451136,1765666233002,-16027.21572378,0.000161,2]
[398451138,1765666233014,-477.23143448,0.000161,2]
[398451150,1765666238316,-643117.41759483,0.000161,2]
[398451151,1765666238326,-277.69143972,0.000161,2]
[398451152,1765666238335,-437.0,0.00016164,2]
[398451153,1765666238344,-500.0,0.00016199,2]
[398451154,1765666238353,-168233.32,0.000162,5]
[398451155,1765666238363,-255.307319,0.000162,2]
[398451156,1765666238372,-151.0,0.000162,2]
[398451157,1765666238382,-151.0,0.000162,2]
[398451158,1765666238391,-151.0,0.000162,2]
[398451159,1765666238400,-151.0,0.000162,2]
[398451160,1765666238409,-151.0,0.000162,2]
[398451161,1765666238418,-151.0,0.000162,2]
[398451162,1765666238428,-151.0,0.000162,2]
[398451163,1765666238437,-3557.41783434,0.00016211,2]
[398451164,1765666238446,-6967.1824519,0.00016211,2]
[398451165,1765666238456,-159.67,0.00016225,2]
[398451166,1765666238466,-1412.0,0.00016234,2]
[398451167,1765666238476,-204.57484846,0.00016237,2]
[398451168,1765666238486,-298.0,0.00016264,2]
[398451169,1765666238496,-318.63,0.00016273,2]
[398451170,1765666238505,-166.66,0.00016312,2]
[398451171,1765666238515,-181.0,0.00016332,2]
[398451172,1765666238524,-27269.90385537,0.000164,2]
[398451173,1765666238534,-277.69143969,0.000164,2]
[398451174,1765666238547,-150.0,0.0001642,2]
[398451175,1765666238557,-151.0,0.00016422,2]
[398451176,1765666238567,-151.0,0.00016422,2]
[398451177,1765666238576,-151.0,0.00016422,2]
[398451178,1765666238587,-151.0,0.00016422,2]
[398451179,1765666238597,-3557.41783434,0.00016422,2]
[398451180,1765666238609,-6967.1824519,0.00016422,2]
[398451181,1765666238619,-196.93257166,0.00016428,2]
[398451182,1765666238628,-666.0,0.00016437,2]
[398451183,1765666238637,-256.95977142,0.00016438,2]
[398451184,1765666238647,-151.0,0.00016438,2]
[398451185,1765666238656,-151.0,0.00016438,2]
[398451186,1765666238666,-151.0,0.00016438,2]
[398451187,1765666238676,-181.688968,0.00016438,2]
[398451188,1765666238686,-151.0,0.00016438,2]
[398451189,1765666238695,-151.0,0.00016438,2]
[398451190,1765666238705,-151.0,0.00016438,2]
[398451191,1765666238714,-161.141359,0.00016438,2]
[398451192,1765666238723,-151.0,0.00016438,2]
[398451193,1765666238733,-164.890281,0.00016438,2]
[398451194,1765666238742,-233.632539,0.00016438,2]
[398451195,1765666238752,-151.0,0.00016438,2]
[398451196,1765666238761,-153.769099,0.00016438,2]
[398451197,1765666238771,-151.0,0.00016438,2]
[398451198,1765666238780,-154.899254,0.00016438,2]
[398451199,1765666238790,-151.0,0.00016438,2]
[398451200,1765666238799,-156.138441,0.00016438,2]
[398451201,1765666238808,-222.514684,0.00016438,2]
[398451202,1765666238818,-206.706963,0.00016438,2]
[398451203,1765666238827,-151.0,0.00016438,2]
[398451204,1765666238837,-151.0,0.00016438,2]
[398451205,1765666238847,-151.0,0.00016438,2]
[398451206,1765666238856,-151.0,0.00016438,2]
[398451207,1765666238865,-151.0,0.00016438,2]
[398451208,1765666238875,-151.0,0.00016438,2]
[398451209,1765666238884,-151.0,0.00016438,2]
[398451210,1765666238893,-151.0,0.00016438,2]
[398451211,1765666238903,-151.0,0.00016438,2]
[398451212,1765666238913,-157.00821,0.00016438,2]
[398451213,1765666238922,-151.0,0.00016438,2]
[398451214,1765666238932,-259.379688,0.00016438,2]
[398451215,1765666238941,-151.0,0.00016438,2]
[398451217,1765666238951,-151.0,0.00016438,2]
[398451219,1765666238961,-151.0,0.00016438,2]
[398451221,1765666238971,-235.36094,0.00016438,2]
[398451223,1765666238981,-258.828236,0.00016438,2]
[398451225,1765666238991,-151.0,0.00016438,2]
[398451227,1765666239001,-211.173027,0.00016438,2]
[398451229,1765666239010,-151.0,0.00016438,2]
[398451231,1765666239020,-151.0,0.00016438,2]
[398451233,1765666239029,-151.0,0.00016438,2]
[398451235,1765666239039,-151.0,0.00016438,2]
[398451237,1765666239049,-151.0,0.00016438,2]
[398451239,1765666239059,-151.0,0.00016438,2]
[398451241,1765666239069,-151.0,0.00016438,2]
[398451243,1765666239078,-151.0,0.00016438,2]
[398451245,1765666239087,-275.761418,0.00016438,2]
[398451247,1765666239096,-600.0,0.00016438,2]
[398451249,1765666239106,-672.989485,0.00016438,2]
[398451251,1765666239116,-672.989485,0.00016438,2]
[398451253,1765666239125,-672.989485,0.00016438,2]
[398451254,1765666239135,-672.989485,0.00016438,2]
[398451256,1765666239144,-672.989485,0.00016438,2]
[398451258,1765666239154,-672.989485,0.00016438,2]
[398451261,1765666239163,-672.989485,0.00016438,2]
[398451262,1765666239172,-672.989485,0.00016438,2]
[398451308,1765666239605,-672.989485,0.00016438,2]
[398451310,1765666239616,-672.989485,0.00016438,2]
[398451312,1765666239626,-672.989485,0.00016438,2]
[398451314,1765666239635,-672.989485,0.00016438,2]
[398451316,1765666239644,-853.164643,0.00016438,2]
[398451318,1765666239654,-853.164643,0.00016438,2]
[398451320,1765666239663,-853.164643,0.00016438,2]
[398451322,1765666239672,-853.164643,0.00016438,2]
[398451324,1765666239682,-853.164643,0.00016438,2]
[398451326,1765666239691,-853.164643,0.00016438,2]
[398451328,1765666239701,-853.164643,0.00016438,2]
[398451330,1765666239710,-853.164643,0.00016438,2]
[398451332,1765666239720,-853.164643,0.00016438,2]
[398451334,1765666239729,-853.164643,0.00016438,2]
[398451336,1765666239738,-853.164643,0.00016438,2]
[398451338,1765666239748,-853.164643,0.00016438,2]
[398451341,1765666239758,-561.539574,0.00016438,2]
[398451343,1765666239768,-561.539574,0.00016438,2]
[398451345,1765666239777,-561.539574,0.00016438,2]
[398451347,1765666239787,-561.539574,0.00016438,2]
[398451349,1765666239796,-561.539574,0.00016438,2]
[398451351,1765666239806,-561.539574,0.00016438,2]
[398451353,1765666239815,-561.539574,0.00016438,2]
[398451354,1765666239825,-561.539574,0.00016438,2]
[398451357,1765666239835,-561.539574,0.00016438,2]
[398451359,1765666239844,-561.539574,0.00016438,2]
[398451361,1765666239854,-561.539574,0.00016438,2]
[398451363,1765666239863,-561.539574,0.00016438,2]
[398451365,1765666239874,-561.539574,0.00016438,2]
[398451367,1765666239883,-561.539574,0.00016438,2]
[398451369,1765666239893,-561.539574,0.00016438,2]
[398451371,1765666239902,-561.539574,0.00016438,2]
[398451373,1765666239912,-817.329244,0.00016438,2]
[398451376,1765666239921,-817.329244,0.00016438,2]
[398451378,1765666239930,-817.329244,0.00016438,2]
[398451380,1765666239939,-817.329244,0.00016438,2]
[398451382,1765666239948,-817.329244,0.00016438,2]
[398451384,1765666239958,-817.329244,0.00016438,2]
[398451386,1765666239967,-817.329244,0.00016438,2]
[398451389,1765666239976,-817.329244,0.00016438,2]
[398451391,1765666239985,-817.329244,0.00016438,2]
[398451393,1765666239994,-817.329244,0.00016438,2]
[398451394,1765666240003,-817.329244,0.00016438,2]
[398451395,1765666240011,-817.329244,0.00016438,2]
[398451396,1765666240021,-817.329244,0.00016438,2]
[398451397,1765666240030,-817.329244,0.00016438,2]
[398451398,1765666240039,-817.329244,0.00016438,2]
[398451399,1765666240047,-817.329244,0.00016438,2]
[398451400,1765666240057,-151.0,0.00016438,2]
[398451401,1765666240066,-551.62202,0.00016438,2]
[398451402,1765666240074,-551.62202,0.00016438,2]
[398451403,1765666240083,-551.62202,0.00016438,2]
[398451404,1765666240092,-551.62202,0.00016438,2]
[398451405,1765666240100,-551.62202,0.00016438,2]
[398451406,1765666240109,-551.62202,0.00016438,2]
[398451407,1765666240118,-551.62202,0.00016438,2]
[398451408,1765666240127,-551.62202,0.00016438,2]
[398451409,1765666240136,-551.62202,0.00016438,2]
[398451410,1765666240146,-551.62202,0.00016438,2]
[398451411,1765666240154,-551.62202,0.00016438,2]
[398451412,1765666240164,-551.62202,0.00016438,2]
[398451413,1765666240173,-551.62202,0.00016438,2]
[398451414,1765666240183,-634.847075,0.00016438,2]
[398451416,1765666240193,-551.62202,0.00016438,2]
[398451418,1765666240202,-634.847075,0.00016438,2]
[398451420,1765666240211,-551.62202,0.00016438,2]
[398451422,1765666240220,-634.847075,0.00016438,2]
[398451424,1765666240229,-551.62202,0.00016438,2]
[398451425,1765666240238,-634.847075,0.00016438,2]
[398451428,1765666240247,-634.847075,0.00016438,2]
[398451429,1765666240256,-634.847075,0.00016438,2]
[398451432,1765666240266,-634.847075,0.00016438,2]
[398451433,1765666240274,-634.847075,0.00016438,2]
[398451436,1765666240284,-634.847075,0.00016438,2]
[398451438,1765666240293,-634.847075,0.00016438,2]
[398451440,1765666240302,-634.847075,0.00016438,2]
[398451441,1765666240312,-634.847075,0.00016438,2]
[398451444,1765666240321,-634.847075,0.00016438,2]
[398451445,1765666240330,-634.847075,0.00016438,2]
[398451447,1765666240340,-634.847075,0.00016438,2]
[398451450,1765666240350,-634.847075,0.00016438,2]
[398451452,1765666240359,-154.438672,0.00016438,2]
[398451453,1765666240368,-697.649458,0.00016438,2]
[398451456,1765666240378,-697.649458,0.00016438,2]
[398451458,1765666240387,-697.649458,0.00016438,2]
[398451460,1765666240397,-697.649458,0.00016438,2]
[398451462,1765666240406,-697.649458,0.00016438,2]
[398451464,1765666240415,-697.649458,0.00016438,2]
[398451465,1765666240424,-697.649458,0.00016438,2]
[398451468,1765666240434,-697.649458,0.00016438,2]
[398451469,1765666240445,-697.649458,0.00016438,2]
[398451471,1765666240454,-697.649458,0.00016438,2]
[398451474,1765666240465,-697.649458,0.00016438,2]
[398451476,1765666240474,-697.649458,0.00016438,2]
[398451478,1765666240485,-697.649458,0.00016438,2]
[398451479,1765666240494,-697.649458,0.00016438,2]
[398451481,1765666240503,-697.649458,0.00016438,2]
[398451482,1765666240512,-697.649458,0.00016438,2]
[398451484,1765666240521,-151.0,0.00016438,2]
[398451486,1765666240531,-151.0,0.00016438,2]
[398451488,1765666240545,-198.0,0.00016438,2]
[398451490,1765666240555,-1323.108506,0.00016438,2]
[398451492,1765666240564,-1323.108506,0.00016438,2]
[398451494,1765666240574,-1323.108506,0.00016438,2]
[398451496,1765666240583,-1323.108506,0.00016438,2]
[398451498,1765666240592,-1323.108506,0.00016438,2]
[398451500,1765666240602,-1323.108506,0.00016438,2]
[398451502,1765666240611,-1323.108506,0.00016438,2]
[398451504,1765666240621,-1323.108506,0.00016438,2]
[398451506,1765666240631,-1323.108506,0.00016438,2]
[398451508,1765666240641,-1323.108506,0.00016438,2]
[398451510,1765666240650,-1323.108506,0.00016438,2]
[398451511,1765666240659,-1323.108506,0.00016438,2]
[398451513,1765666240669,-1323.108506,0.00016438,2]
[398451515,1765666240678,-1323.108506,0.00016438,2]
[398451517,1765666240687,-1323.108506,0.00016438,2]
[398451519,1765666240696,-1323.108506,0.00016438,2]
[398451521,1765666240707,-151.0,0.00016438,2]
[398451523,1765666240716,-151.0,0.00016438,2]
[398451525,1765666240725,-151.0,0.00016438,2]
[398451527,1765666240734,-151.0,0.00016438,2]
[398451529,1765666240743,-151.0,0.00016438,2]
[398451531,1765666240752,-151.0,0.00016438,2]
[398451533,1765666240761,-191.591339,0.00016438,2]
[398451535,1765666240771,-151.0,0.00016438,2]
[398451537,1765666240780,-151.0,0.00016438,2]
[398451538,1765666240789,-151.0,0.00016438,2]
[398451540,1765666240798,-151.0,0.00016438,2]
[398451542,1765666240808,-258.6,0.00016438,2]
[398451544,1765666240817,-258.6,0.00016438,2]
[398451546,1765666240827,-258.6,0.00016438,2]
[398451548,1765666240836,-258.6,0.00016438,2]
[398451550,1765666240846,-258.6,0.00016438,2]
[398451552,1765666240855,-258.6,0.00016438,2]
[398451554,1765666240863,-258.6,0.00016438,2]
[398451556,1765666240873,-258.6,0.00016438,2]
[398451558,1765666240882,-258.6,0.00016438,2]
[398451560,1765666240890,-151.0,0.00016438,2]
[398451562,1765666240899,-258.6,0.00016438,2]
[398451564,1765666240908,-151.0,0.00016438,2]
[398451566,1765666240917,-258.6,0.00016438,2]
[398451568,1765666240927,-151.0,0.00016438,2]
[398451570,1765666240936,-258.6,0.00016438,2]
[398451572,1765666240946,-151.0,0.00016438,2]
[398451574,1765666240955,-258.6,0.00016438,2]
[398451576,1765666240964,-571.704674,0.00016438,2]
[398451578,1765666240973,-151.0,0.00016438,2]
[398451580,1765666240982,-258.6,0.00016438,2]
[398451582,1765666240991,-571.704674,0.00016438,2]
[398451584,1765666241000,-151.0,0.00016438,2]
[398451586,1765666241010,-258.6,0.00016438,2]
[398451588,1765666241019,-571.704674,0.00016438,2]
[398451590,1765666241028,-258.6,0.00016438,2]
[398451592,1765666241037,-571.704674,0.00016438,2]
[398451594,1765666241047,-258.6,0.00016438,2]
[398451596,1765666241056,-258.6,0.00016438,2]
[398451597,1765666241065,-258.6,0.00016438,2]
[398451599,1765666241074,-571.704674,0.00016438,2]
[398451601,1765666241084,-258.6,0.00016438,2]
[398451603,1765666241093,-571.704674,0.00016438,2]
[398451605,1765666241102,-571.704674,0.00016438,2]
[398451607,1765666241111,-571.704674,0.00016438,2]
[398451610,1765666241120,-571.704674,0.00016438,2]
[398451612,1765666241129,-571.704674,0.00016438,2]
[398451614,1765666241140,-151.92,0.00016438,2]
[398451615,1765666241150,-181.55590847,0.0001645,2]
[398451617,1765666241159,-300.0,0.0001652,2]
[398451619,1765666241168,-666.0,0.0001652,2]
[398451621,1765666241178,-307.76658629,0.0001652,2]
[398451624,1765666241188,-742.98498988,0.0001652,2]
[398451625,1765666241197,-151.0,0.00016521,2]
[398451628,1765666241206,-672.989485,0.00016521,2]
[398451629,1765666241216,-672.989485,0.00016521,2]
[398451631,1765666241225,-672.989485,0.00016521,2]
[398451634,1765666241235,-672.989485,0.00016521,2]
[398451636,1765666241245,-853.164643,0.00016521,2]
[398451638,1765666241254,-853.164643,0.00016521,2]
[398451640,1765666241264,-853.164643,0.00016521,2]
[398451641,1765666241273,-853.164643,0.00016521,2]
[398451643,1765666241283,-4770.0,0.00016521,2]
[398451645,1765666241292,-300.0,0.00016526,2]
[398451647,1765666241301,-3119.4698438,0.00016527,2]
[398451650,1765666241311,-151.0,0.00016527,2]
[398451652,1765666241320,-151.0,0.00016527,2]
[398451653,1765666241330,-151.0,0.00016527,2]
[398451655,1765666241339,-151.0,0.00016527,2]
[398451657,1765666241348,-151.0,0.00016527,2]
[398451659,1765666241356,-151.0,0.00016527,2]
[398451661,1765666241366,-561.539574,0.00016527,2]
[398451663,1765666241375,-561.539574,0.00016527,2]
[398451665,1765666241385,-561.539574,0.00016527,2]
[398451667,1765666241394,-561.539573,0.00016527,2]
[398451669,1765666241404,-817.329244,0.00016527,2]
[398451671,1765666241414,-817.329244,0.00016527,2]
[398451673,1765666241423,-817.329244,0.00016527,2]
[398451675,1765666241432,-817.329254,0.00016527,2]
[398451677,1765666241441,-551.62202,0.00016527,2]
[398451679,1765666241452,-551.62202,0.00016527,2]
[398451681,1765666241463,-551.62202,0.00016527,2]
[398451683,1765666241472,-551.622014,0.00016527,2]
[398451685,1765666241481,-634.847075,0.00016527,2]
[398451687,1765666241490,-634.847075,0.00016527,2]
[398451689,1765666241500,-634.847075,0.00016527,2]
[398451691,1765666241509,-634.84707,0.00016527,2]
[398451693,1765666241518,-697.649458,0.00016527,2]
[398451695,1765666241528,-697.649458,0.00016527,2]
[398451697,1765666241540,-697.649458,0.00016527,2]
[398451699,1765666241550,-697.649454,0.00016527,2]
[398451701,1765666241559,-1323.108506,0.00016527,2]
[398451703,1765666241568,-1323.108506,0.00016527,2]
[398451705,1765666241577,-1323.108506,0.00016527,2]
[398451707,1765666241588,-1323.10851,0.00016527,2]
[398451709,1765666241597,-151.0,0.00016527,2]
[398451711,1765666241607,-300.0,0.00016544,2]
[398451713,1765666241618,-318.63,0.00016547,2]
[398451715,1765666241627,-419.63151236,0.00016607,2]
[398451717,1765666241639,-300.0,0.00016632,2]
[398451719,1765666241649,-3557.41783434,0.00016633,2]
[398451721,1765666241658,-6967.1824519,0.00016633,2]
[398451723,1765666241668,-156.32703024,0.00016633,2]
[398451725,1765666241677,-1000.0,0.00016634,2]
[398451727,1765666241686,-150.0,0.00016658,2]
[398451729,1765666241696,-150.0,0.00016658,2]
[398451731,1765666241706,-200.0,0.00016658,2]
[398451733,1765666241715,-150.0,0.00016658,2]
[398451735,1765666241725,-200.0,0.00016658,2]
[398451737,1765666241734,-782.0,0.00016658,2]
[398451739,1765666241743,-238.16065675,0.00016658,2]
[398451741,1765666241753,-150.0,0.00016658,2]
[398451743,1765666241762,-150.0,0.00016658,2]
[398451745,1765666241772,-150.0,0.00016658,2]
[398451747,1765666241781,-150.0,0.00016658,2]
[398451749,1765666241790,-300.0,0.00016684,2]
[398451751,1765666241800,-277.69143969,0.000167,2]
[398451753,1765666241809,-600.0,0.00016712,2]
[398451755,1765666241818,-300.0,0.00016729,2]
[398451757,1765666241828,-151.0,0.0001673,2]
[398451759,1765666241838,-325.38630701,0.00016738,2]
[398451761,1765666241847,-10000.0,0.00016744,2]
[398451763,1765666241856,-2949.24706,0.0001678,2]
[398451765,1765666241866,-672.989485,0.00016788,2]
[398451767,1765666241875,-672.989485,0.00016788,2]
[398451769,1765666241884,-672.989485,0.00016788,2]
[398451771,1765666241894,-672.989491,0.00016788,2]
[398451773,1765666241903,-300.0,0.00016794,2]
[398451775,1765666241913,-500.0,0.00016795,2]
[398451777,1765666241922,-150.0,0.00016795,2]
[398451779,1765666241931,-150.0,0.00016795,2]
[398451781,1765666241941,-150.0,0.00016795,2]
[398451783,1765666241951,-782.0,0.00016795,2]
[398451785,1765666241960,-150.0,0.00016795,2]
[398451787,1765666241970,-150.0,0.00016795,2]
[398451789,1765666241979,-150.0,0.00016795,2]
[398451791,1765666241988,-853.164643,0.00016795,2]
[398451793,1765666241997,-853.164643,0.00016795,2]
[398451795,1765666242007,-853.164643,0.00016795,2]
[398451796,1765666242017,-853.16465,0.00016795,2]
[398451798,1765666242026,-300.0,0.00016811,2]
[398451800,1765666242036,-318.63,0.00016821,2]
[398451802,1765666242045,-2000.0,0.00016837,2]
[398451804,1765666242055,-200.0,0.00016837,2]
[398451806,1765666242065,-300.0,0.00016843,2]
[398451808,1765666242074,-151.0,0.00016844,2]
[398451811,1765666242083,-151.0,0.00016844,2]
[398451812,1765666242093,-151.0,0.00016844,2]
[398451814,1765666242102,-151.0,0.00016844,2]